bitfinex/quotes_BTCUSD_20220303
["timestamp","ask_amount","ask_price","bid_price","bid_amount"]
[1646298211522,3.21501695,43460.0,43459.0,0.21070852]
[1646298212525,3.05757,43460.0,43459.0,0.21070852]
[1646298213567,3.06157,43460.0,43459.0,0.21070852]
[1646298213970,3.56157,43460.0,43459.0,0.21070852]
[1646298214871,3.55757,43460.0,43459.0,0.21070852]
[1646298215476,3.56157,43460.0,43459.0,0.21070852]
[1646298216274,3.504,43460.0,43459.0,0.21070852]
[1646298216674,3.5,43460.0,43459.0,0.21070852]
[1646298216911,3.70165395,43460.0,43459.0,0.21070852]
[1646298217210,3.0,43460.0,43459.0,0.21070852]
[1646298218216,3.5,43460.0,43459.0,0.21070852]
[1646298219616,3.504,43460.0,43459.0,0.21070852]
[1646298220766,3.5,43460.0,43459.0,0.21070852]
[1646298221867,3.67829616,43460.0,43459.0,0.21070852]
[1646298222567,3.5,43460.0,43459.0,0.21070852]
[1646298222766,3.4954,43460.0,43459.0,0.21070852]
[1646298223369,4.0954,43460.0,43459.0,0.21070852]
[1646298223569,4.65222372,43460.0,43459.0,0.21070852]
[1646298223769,4.67523372,43460.0,43459.0,0.21070852]
[1646298223968,4.69832372,43460.0,43459.0,0.21070852]
[1646298224170,4.34334372,43460.0,43459.0,0.21070852]
[1646298225017,4.1415,43460.0,43459.0,0.21070852]
[1646298225218,3.9954,43460.0,43459.0,0.21070852]
[1646298229478,4.15887634,43460.0,43459.0,0.21070852]
[1646298229675,4.51785634,43460.0,43459.0,0.21070852]
[1646298230076,4.50765091,43460.0,43459.0,0.21070852]
[1646298230577,5.00765091,43460.0,43459.0,0.21070852]
[1646298230776,5.00365091,43460.0,43459.0,0.21070852]
[1646298230977,5.09916014,43460.0,43459.0,0.21070852]
[1646298231575,5.24826014,43460.0,43459.0,0.21070852]
[1646298232620,4.89328014,43460.0,43459.0,0.21070852]
[1646298232819,4.89028014,43460.0,43459.0,0.21070852]
[1646298233718,4.89328014,43460.0,43459.0,0.21070852]
[1646298234120,4.79777091,43460.0,43459.0,0.21070852]
[1646298234324,4.75167091,43460.0,43459.0,0.21070852]
[1646298234521,4.5984,43460.0,43459.0,0.21070852]
[1646298235119,4.4984,43460.0,43459.0,0.21070852]
[1646298235785,4.9984,43460.0,43459.0,0.21070852]
[1646298236183,4.4984,43460.0,43459.0,0.21070852]
[1646298236984,4.4954,43460.0,43459.0,0.21070852]
[1646298237585,4.9994,43460.0,43459.0,0.21070852]
[1646298238784,4.9954,43460.0,43459.0,0.21070852]
[1646298239620,4.9994,43460.0,43459.0,0.21070852]
[1646298240923,4.9954,43460.0,43459.0,0.21070852]
[1646298241324,4.9949426,43460.0,43459.0,0.21070852]
[1646298241723,4.9969426,43460.0,43459.0,0.21070852]
[1646298242326,5.05257865,43460.0,43459.0,0.21070852]
[1646298242523,4.9969426,43460.0,43459.0,0.21070852]
[1646298242923,4.9949426,43460.0,43459.0,0.21070852]
[1646298243373,5.06748946,43460.0,43459.0,0.21070852]
[1646298243972,5.26685553,43460.0,43459.0,0.21070852]
[1646298244368,5.26885553,43460.0,43459.0,0.21070852]
[1646298244970,5.76885553,43460.0,43459.0,0.21070852]
[1646298245569,5.82943653,43460.0,43459.0,0.21070852]
[1646298246964,5.82943653,43460.0,43454.0,0.002]
[1646298246965,0.35,43459.0,43454.0,0.002]
[1646298247263,0.11515,43456.0,43452.0,0.00017488]
[1646298247465,0.5,43455.0,43452.0,0.00017488]
[1646298248259,0.5,43455.0,43448.0,0.20257581]
[1646298248662,0.5,43455.0,43451.0,0.00017487]
[1646298249461,0.5,43455.0,43448.0,0.20257581]
[1646298249662,0.26898508,43452.0,43451.0,0.00317469]
[1646298249862,0.76898508,43452.0,43451.0,0.00317469]
[1646298250676,0.76898508,43452.0,43451.0,0.003]
[1646298250878,0.76898508,43452.0,43449.0,0.00017469]
[1646298251080,0.3,43451.0,43449.0,0.00017469]
[1646298251678,0.47009888,43451.0,43449.0,0.00017469]
[1646298251878,0.47009888,43451.0,43447.0,0.0011]
[1646298252079,0.47009888,43451.0,43448.0,0.00017469]
[1646298252482,1.02768988,43451.0,43448.0,0.00017469]
[1646298253179,0.8,43451.0,43447.0,0.0011]
[1646298253379,0.8,43451.0,43447.0,0.00127471]
[1646298253579,0.5,43451.0,43447.0,0.00127471]
[1646298253980,0.8,43451.0,43447.0,0.00127471]
[1646298254180,0.8,43451.0,43447.0,0.00081831]
[1646298254436,0.5,43451.0,43447.0,0.00081831]
[1646298254829,0.8,43451.0,43447.0,0.00081831]
[1646298255231,0.5,43450.0,43447.0,0.00081831]
[1646298255432,0.5,43450.0,43447.0,0.0006436]
[1646298262422,0.49561571,43448.0,43447.0,0.0006436]
[1646298262626,0.49404959,43448.0,43447.0,0.0006436]
[1646298262926,0.79404959,43448.0,43447.0,0.0006436]
[1646298263124,1.19512959,43448.0,43447.0,0.0006436]
[1646298263722,1.19812959,43448.0,43447.0,0.0006436]
[1646298264123,1.29363882,43448.0,43447.0,0.0006436]
[1646298264726,1.39363882,43448.0,43447.0,0.0006436]
[1646298265026,1.39063882,43448.0,43447.0,0.0006436]
[1646298265426,1.74412055,43448.0,43447.0,0.0006436]
[1646298265687,1.74712055,43448.0,43447.0,0.0006436]
[1646298266989,1.74412055,43448.0,43447.0,0.0006436]
[1646298267389,1.54392261,43448.0,43447.0,0.0006436]
[1646298268791,0.78894261,43448.0,43447.0,0.0006436]
[1646298268992,0.64733338,43448.0,43447.0,0.0006436]
[1646298269192,0.49404959,43448.0,43447.0,0.0006436]
[1646298271639,0.85502959,43448.0,43447.0,0.0006436]
[1646298272040,0.68694115,43448.0,43447.0,0.0006436]
[1646298272239,0.84022494,43448.0,43447.0,0.0006436]
[1646298273040,0.83422494,43448.0,43447.0,0.0006436]
[1646298273270,0.64733338,43448.0,43447.0,0.0006436]
[1646298273471,1.00231338,43448.0,43447.0,0.0006436]
[1646298273671,0.49404959,43448.0,43447.0,0.0006436]
[1646298273875,0.64733338,43448.0,43447.0,0.0006436]
[1646298274072,1.00231338,43448.0,43447.0,0.0001884]
[1646298274271,0.84902959,43448.0,43447.0,0.0001884]
[1646298274472,1.00231338,43448.0,43447.0,0.0001884]
[1646298275173,1.30231338,43448.0,43447.0,0.0001884]
[1646298275775,1.30831338,43448.0,43447.0,0.0001884]
[1646298276575,1.37582511,43448.0,43447.0,0.0001884]
[1646298276938,1.36982511,43448.0,43447.0,0.0001884]
[1646298277941,1.46982511,43448.0,43447.0,0.0001884]
[1646298279738,1.47282511,43448.0,43447.0,0.0001884]
[1646298280988,1.46982511,43448.0,43447.0,0.0001884]
[1646298282388,1.40231338,43448.0,43447.0,0.0001884]
[1646298285729,1.40631338,43448.0,43447.0,0.0001884]
[1646298286933,1.40231338,43448.0,43447.0,0.0001884]
[1646298289383,1.56890126,43448.0,43447.0,0.0001884]
[1646298289783,1.57190126,43448.0,43447.0,0.0001884]
[1646298290385,1.40531338,43448.0,43447.0,0.0001884]
[1646298291087,1.40231338,43448.0,43447.0,0.0001884]
[1646298291286,1.10231338,43448.0,43447.0,0.0001884]
[1646298291685,1.00231338,43448.0,43447.0,0.0001884]
[1646298291933,0.64733338,43448.0,43447.0,0.0001884]
[1646298292142,0.1365007,43448.0,43447.0,0.5512684]
[1646298292332,0.5,43450.0,43448.0,0.20876873]
[1646298292532,0.5,43450.0,43449.0,0.396879]
[1646298292736,0.5,43450.0,43449.0,0.096879]
[1646298293533,0.5,43450.0,43449.0,0.29345934]
[1646298293734,0.5,43450.0,43449.0,0.29845934]
[1646298294335,0.5,43450.0,43449.0,0.59845934]
[1646298294935,0.5,43450.0,43449.0,0.59345934]
[1646298298377,0.5,43450.0,43449.0,0.29345934]
[1646298300034,0.5,43450.0,43449.0,0.096879]
[1646298301131,0.5,43450.0,43449.0,0.26436493]
[1646298301732,0.5,43450.0,43449.0,0.27136493]
[1646298302334,0.5,43450.0,43449.0,0.108879]
[1646298302538,0.5,43450.0,43449.0,0.062779]
[1646298303179,0.5,43450.0,43449.0,0.050779]
[1646298303381,0.5,43450.0,43447.0,0.00034996]
[1646298303581,0.5,43450.0,43447.0,0.0001884]
[1646298303783,0.5,43450.0,43447.0,0.00034996]
[1646298304781,0.5,43450.0,43447.0,0.0001884]
[1646298306481,0.69220638,43450.0,43447.0,0.0001884]
[1646298307429,0.3,43449.0,43447.0,0.0001884]
[1646298307930,0.35498,43448.0,43446.0,0.00126157]
[1646298308127,0.65498,43447.0,43446.0,0.00126157]
[1646298308328,0.65498,43447.0,43446.0,0.0011]
[1646298308529,0.70108,43447.0,43446.0,0.0011]
[1646298308729,0.3461,43447.0,43446.0,0.0011]
[1646298309530,0.70108,43447.0,43446.0,0.0011]
[1646298310029,0.70408,43447.0,43446.0,0.0011]
[1646298310229,0.5,43446.0,43440.0,0.0027708]
[1646298310434,0.557596,43446.0,43440.0,0.0027708]
[1646298310685,0.057596,43446.0,43434.0,0.0419455]
[1646298310894,0.464291,43447.0,43433.0,0.1925]
[1646298311087,0.464291,43447.0,43435.0,0.15]
[1646298311286,0.461291,43447.0,43435.0,0.15]
[1646298311688,0.057589,43444.0,43435.0,0.15]
[1646298311889,0.21932846,43441.0,43436.0,0.35498]
[1646298312489,0.057589,43444.0,43436.0,0.35498]
[1646298312691,0.057589,43444.0,43435.0,0.009]
[1646298312993,0.057589,43444.0,43435.0,0.159]
[1646298313192,0.057589,43444.0,43435.0,0.15]
[1646298313591,0.27906226,43443.0,43435.0,0.15]
[1646298313891,0.27906226,43443.0,43436.0,0.35498]
[1646298314530,0.27906226,43443.0,43436.0,0.35516807]
[1646298314731,0.057589,43444.0,43436.0,0.00018807]
[1646298314930,0.057589,43444.0,43437.0,0.35498]
[1646298315334,0.057589,43444.0,43438.0,0.354971]
[1646298315536,0.057589,43444.0,43437.0,0.35498]
[1646298315733,0.20934369,43442.0,43437.0,0.35498]
[1646298316133,0.20934369,43442.0,43438.0,0.005]
[1646298317333,0.20934369,43442.0,43436.0,0.00018807]
[1646298317934,0.20934369,43442.0,43436.0,0.005]
[1646298318180,0.20934369,43442.0,43436.0,0.00518807]
[1646298319078,0.20934369,43442.0,43436.0,0.005]
[1646298319280,0.20934369,43442.0,43436.0,0.00018807]
[1646298319980,0.20934369,43442.0,43436.0,0.00618807]
[1646298320380,0.20934369,43442.0,43436.0,0.006]
[1646298320579,0.20934369,43442.0,43436.0,0.00618807]
[1646298321179,0.20934369,43442.0,43436.0,0.00018807]
[1646298321380,0.03531503,43445.0,43436.0,0.00018807]
[1646298321949,0.03531503,43445.0,43436.0,0.00918807]
[1646298322245,0.83456636,43444.0,43436.0,0.00918807]
[1646298322437,0.88472326,43444.0,43436.0,0.00918807]
[1646298322740,0.35498,43441.0,43436.0,0.009]
[1646298322936,0.35498,43439.0,43436.0,0.009]
[1646298323136,0.35498,43437.0,43436.0,0.009]
[1646298323339,0.0461,43437.0,43433.0,0.0011]
[1646298324338,0.057601,43436.0,43433.0,0.0011]
[1646298325984,0.057601,43436.0,43433.0,0.0041]
[1646298327483,0.057601,43436.0,43433.0,0.0011]
[1646298327484,0.23842549,43436.0,43433.0,0.0011]
[1646298327684,0.057601,43436.0,43433.0,0.0011]
[1646298332029,0.058601,43436.0,43433.0,0.0011]
[1646298332228,0.058601,43436.0,43433.0,0.0009974]
[1646298333368,0.057601,43436.0,43433.0,0.0009974]
[1646298338127,0.37799,43435.0,43433.0,0.0009974]
[1646298338324,0.35498,43434.0,43433.0,0.0009974]
[1646298338927,0.057601,43436.0,43433.0,0.0009974]
[1646298346135,0.059601,43436.0,43433.0,0.0009974]
[1646298347333,0.057601,43436.0,43433.0,0.0009974]
[1646298348187,0.060601,43436.0,43433.0,0.0009974]
[1646298349391,0.057601,43436.0,43433.0,0.0009974]
[1646298349799,0.35498,43440.0,43439.0,0.0009974]
[1646298349996,0.45028923,43440.0,43439.0,0.0009974]
[1646298353537,0.1226,43442.0,43439.0,0.0009974]
[1646298353733,0.15331482,43446.0,43440.0,0.355059]
[1646298353933,0.025,43451.0,43440.0,0.355059]
[1646298353934,0.29576566,43447.0,43440.0,0.355059]
[1646298354232,0.29592586,43447.0,43440.0,0.355059]
[1646298354436,0.0001602,43447.0,43445.0,0.16961671]
[1646298355235,0.0115,43453.0,43445.0,0.16961671]
[1646298355437,0.0001602,43448.0,43445.0,0.16961671]
[1646298355686,0.2799594,43447.0,43441.0,0.1151481]
[1646298355886,0.2799594,43447.0,43443.0,0.115152]
[1646298356384,0.2799594,43447.0,43439.0,0.0009974]
[1646298356584,0.28011961,43447.0,43439.0,0.0009974]
[1646298356783,0.28011961,43447.0,43439.0,0.361205]
[1646298356988,0.28011961,43447.0,43439.0,0.34104142]
[1646298357585,0.2799594,43447.0,43439.0,0.2834596]
[1646298357786,0.2801196,43447.0,43439.0,0.1161604]
[1646298357986,0.15636973,43446.0,43439.0,0.0009974]
[1646298358186,0.355059,43446.0,43439.0,0.0009974]
[1646298358586,0.378069,43444.0,43439.0,0.0009974]
[1646298358787,0.378069,43444.0,43438.0,0.0008974]
[1646298358985,0.09550923,43440.0,43438.0,0.0008974]
[1646298359186,0.09550923,43439.0,43438.0,0.0008974]
[1646298359425,0.45056823,43439.0,43438.0,0.0008974]
[1646298359825,0.355059,43439.0,43438.0,0.0008974]
[1646298360929,0.378069,43439.0,43438.0,0.0008974]
[1646298361129,0.67331794,43439.0,43438.0,0.0008974]
[1646298361331,0.377999,43439.0,43438.0,0.0008974]
[1646298361929,0.377919,43439.0,43438.0,0.0008974]
[1646298362132,0.381919,43439.0,43438.0,0.0008974]
[1646298362331,0.355059,43437.0,43431.0,0.00037288]
[1646298362530,0.355069,43437.0,43431.0,0.00037288]
[1646298362731,0.02301,43436.0,43431.0,0.00037288]
[1646298363032,0.02301,43437.0,43431.0,0.00037288]
[1646298363277,0.378079,43435.0,43431.0,0.00037288]
[1646298363478,0.2750436,43433.0,43431.0,0.00037288]
[1646298363678,0.2750436,43433.0,43431.0,0.00054653]
[1646298363881,0.2520436,43433.0,43431.0,0.00054653]
[1646298364280,0.355069,43432.0,43431.0,0.00054653]
[1646298364481,0.72044347,43432.0,43431.0,0.00054653]
[1646298364682,0.72044347,43432.0,43431.0,0.00037288]
[1646298364683,0.82044347,43432.0,43431.0,0.00037288]
[1646298364879,0.97373533,43432.0,43431.0,0.00037288]
[1646298365179,1.06924456,43432.0,43431.0,0.00037288]
[1646298365379,1.08074456,43432.0,43431.0,0.00037288]
[1646298368136,1.08474456,43432.0,43431.0,0.00037288]
[1646298369341,1.08074456,43432.0,43431.0,0.00037288]
[1646298369538,1.78194456,43432.0,43431.0,0.00037288]
[1646298369740,1.08074456,43432.0,43431.0,0.00037288]
[1646298370140,1.06924456,43432.0,43431.0,0.00037288]
[1646298370975,1.08074456,43432.0,43431.0,0.00037288]
[1646298371776,0.78448009,43432.0,43431.0,0.00037288]
[1646298371977,1.08448009,43432.0,43431.0,0.00037288]
[1646298372176,0.93118823,43432.0,43431.0,0.00037288]
[1646298372376,0.78448009,43432.0,43431.0,0.00037288]
[1646298372583,0.77298009,43432.0,43431.0,0.00037288]
[1646298372778,0.57358823,43432.0,43431.0,0.00037288]
[1646298372979,0.455069,43432.0,43431.0,0.00037288]
[1646298374280,0.55357823,43432.0,43431.0,0.00037288]
[1646298375128,0.57658823,43432.0,43431.0,0.00037288]
[1646298375325,0.57358823,43432.0,43431.0,0.00037288]
[1646298376126,0.57658823,43432.0,43431.0,0.00037288]
[1646298376328,0.62268823,43432.0,43431.0,0.00037288]
[1646298376530,0.77598009,43432.0,43431.0,0.00037288]
[1646298377326,0.77298009,43432.0,43431.0,0.00037288]
[1646298378223,0.77598009,43432.0,43431.0,0.00037288]
[1646298379423,0.77298009,43432.0,43431.0,0.00037288]
[1646298380124,0.77898009,43432.0,43431.0,0.00037288]
[1646298381530,0.77298009,43432.0,43431.0,0.00037288]
[1646298381947,0.72688009,43432.0,43431.0,0.00037288]
[1646298382149,0.60836086,43432.0,43431.0,0.00037288]
[1646298382363,0.455069,43432.0,43431.0,0.00037288]
[1646298382549,0.355069,43432.0,43431.0,0.00037288]
[1646298383151,0.55057823,43432.0,43431.0,0.00037288]
[1646298383549,0.67730423,43432.0,43431.0,0.00037288]
[1646298383949,0.92275989,43432.0,43431.0,0.00037288]
[1646298384149,0.92575989,43432.0,43431.0,0.00037288]
[1646298384349,1.07905175,43432.0,43431.0,0.00037288]
[1646298384551,1.07905175,43432.0,43420.0,0.0011]
[1646298384552,0.02301,43430.0,43420.0,0.0011]
[1646298384751,0.412693,43427.0,43420.0,0.0011]
[1646298385149,0.355069,43425.0,43420.0,0.0011]
[1646298385804,0.24194648,43424.0,43420.0,0.0011]
[1646298386002,0.355069,43423.0,43420.0,0.0011]
[1646298386602,0.355069,43423.0,43420.0,0.00126088]
[1646298387501,0.355069,43423.0,43420.0,0.0011]
[1646298387701,0.355069,43423.0,43420.0,0.00126088]
[1646298388702,0.355069,43423.0,43420.0,0.0011]
[1646298388903,0.355069,43423.0,43420.0,0.00126088]
[1646298390034,0.355069,43423.0,43420.0,0.0011]
[1646298390235,0.355069,43423.0,43420.0,0.00126001]
[1646298390636,0.378079,43423.0,43420.0,0.00126001]
[1646298390937,0.6524611,43423.0,43420.0,0.00126001]
[1646298391142,0.524179,43423.0,43420.0,0.0011]
[1646298391333,0.67751505,43423.0,43420.0,0.00126001]
[1646298392136,0.77602428,43423.0,43420.0,0.00126001]
[1646298392432,0.77602428,43423.0,43420.0,0.0011]
[1646298392433,0.62268823,43423.0,43420.0,0.0011]
[1646298392633,0.77604156,43423.0,43420.0,0.00126001]
[1646298392832,0.78409367,43423.0,43420.0,0.00126001]
[1646298393035,1.10617464,43423.0,43420.0,0.00126001]
[1646298393294,0.78754156,43423.0,43420.0,0.00126001]
[1646298393488,0.77304156,43423.0,43420.0,0.00126001]
[1646298393691,0.75003156,43423.0,43420.0,0.0011]
[1646298393890,0.501169,43423.0,43420.0,0.00126034]
[1646298394789,0.501169,43423.0,43420.0,0.0011]
[1646298394989,0.59667823,43423.0,43420.0,0.00126034]
[1646298395795,0.61968823,43423.0,43420.0,0.00126034]
[1646298395991,1.19568823,43423.0,43420.0,0.0011]
[1646298396193,1.19968823,43423.0,43420.0,0.00126034]
[1646298397136,1.19968823,43423.0,43420.0,0.0011]
[1646298397137,1.35304323,43423.0,43420.0,0.0011]
[1646298397335,1.35304323,43423.0,43420.0,0.00126011]
[1646298397535,1.34904323,43423.0,43420.0,0.00126011]
[1646298398136,2.05024323,43423.0,43421.0,0.0061]
[1646298398340,0.57358823,43422.0,43421.0,0.0061]
[1646298398538,1.89688823,43422.0,43421.0,0.0061]
[1646298398941,1.19568823,43422.0,43421.0,0.0061]
[1646298400143,1.17267823,43422.0,43421.0,0.0061]
[1646298400344,0.55057823,43422.0,43421.0,0.0061]
[1646298402787,0.455069,43422.0,43421.0,0.0061]
[1646298402987,0.455069,43422.0,43421.0,1.0061]
[1646298403787,0.55057823,43422.0,43421.0,1.0061]
[1646298404187,0.60167823,43422.0,43421.0,1.0061]
[1646298405245,0.460069,43422.0,43421.0,1.0061]
[1646298405443,0.455069,43422.0,43421.0,1.0061]
[1646298406248,0.82611643,43422.0,43421.0,1.0061]
[1646298406444,0.59967823,43422.0,43421.0,1.0061]
[1646298406845,0.458069,43422.0,43421.0,1.0061]
[1646298407044,0.115263,43424.0,43423.0,0.484304]
[1646298407244,0.355097,43424.0,43423.0,0.484304]
[1646298407645,0.355097,43424.0,43423.0,0.784304]
[1646298407847,0.025,43427.0,43423.0,0.484304]
[1646298408047,0.025,43427.0,43424.0,0.3]
[1646298408303,0.025,43427.0,43425.0,0.19214867]
[1646298408502,0.00016012,43431.0,43426.0,0.05337182]
[1646298409103,0.00016012,43431.0,43425.0,0.19214867]
[1646298409307,0.29227413,43434.0,43425.0,0.19214867]
[1646298409505,0.355097,43433.0,43425.0,0.19214867]
[1646298409705,0.00016013,43431.0,43427.0,0.1865409]
[1646298409906,0.00016013,43431.0,43427.0,0.4865409]
[1646298410506,0.1451,43439.0,43427.0,0.4865409]
[1646298410707,0.00016013,43431.0,43427.0,0.4865409]
[1646298410909,0.00016013,43431.0,43428.0,0.05785103]
[1646298411708,0.21684253,43438.0,43431.0,0.27013662]
[1646298411952,0.00016011,43432.0,43429.0,0.3]
[1646298412148,0.00016011,43432.0,43428.0,0.05785103]
[1646298412345,0.00016011,43432.0,43429.0,0.3]
[1646298412748,0.03488411,43441.0,43429.0,0.3]
[1646298413048,0.03488411,43441.0,43435.0,0.21824398]
[1646298413248,0.03488411,43441.0,43429.0,0.3]
[1646298413846,0.355097,43440.0,43429.0,0.3]
[1646298414348,0.0001601,43437.0,43431.0,0.24936678]
[1646298414547,0.0001601,43437.0,43429.0,0.302]
[1646298415349,0.355097,43440.0,43429.0,0.302]
[1646298415549,0.00016023,43435.0,43429.0,0.3]
[1646298416189,0.00216023,43435.0,43429.0,0.3]
[1646298416383,0.00216023,43435.0,43433.0,0.0576]
[1646298416384,0.002,43435.0,43433.0,0.0576]
[1646298416785,0.00016023,43434.0,43433.0,0.0576]
[1646298417584,0.355097,43440.0,43433.0,0.0576]
[1646298417985,0.00016023,43436.0,43433.0,0.0576]
[1646298418885,0.03488411,43441.0,43434.0,0.3]
[1646298419085,0.00016067,43437.0,43434.0,0.415191]
[1646298419981,0.1994,43446.0,43435.0,0.4126785]
[1646298420181,0.025,43445.0,43437.0,0.05758]
[1646298420386,0.08245,43447.0,43439.0,0.115157]
[1646298420784,0.08245,43447.0,43441.0,0.21278603]
[1646298420983,0.08245,43447.0,43442.0,0.24327972]
[1646298421187,0.08245,43447.0,43441.0,0.21278603]
[1646298421589,0.00016065,43446.0,43441.0,0.21278603]
[1646298422001,0.00016065,43446.0,43441.0,0.38553303]
[1646298422186,0.00016065,43446.0,43444.0,0.0533489]
[1646298422385,0.08245,43447.0,43444.0,0.0533489]
[1646298422586,0.08245,43447.0,43441.0,0.32795303]
[1646298422786,0.00016014,43446.0,43443.0,0.23817964]
[1646298422986,0.00016014,43446.0,43441.0,0.32795303]
[1646298423701,0.08245,43447.0,43442.0,0.05872317]
[1646298423904,0.00016014,43446.0,43442.0,0.05872317]
[1646298424506,0.00016014,43446.0,43441.0,0.115167]
[1646298424705,0.355097,43445.0,43441.0,0.115167]
[1646298424905,0.359097,43445.0,43441.0,0.115167]
[1646298425403,0.20680518,43442.0,43441.0,0.115167]
[1646298425605,0.355097,43442.0,43441.0,0.115167]
[1646298425803,0.355097,43444.0,43441.0,0.115167]
[1646298426403,0.35525709,43444.0,43441.0,0.115167]
[1646298426804,0.00016009,43444.0,43441.0,0.115167]
[1646298427041,0.355097,43443.0,43441.0,0.115167]
[1646298427246,0.355097,43442.0,43441.0,0.115167]
[1646298427540,0.355097,43444.0,43441.0,0.115167]
[1646298427740,0.2762082,43445.0,43439.0,0.115157]
[1646298427942,0.355097,43444.0,43439.0,0.115157]
[1646298428742,0.355097,43443.0,43439.0,0.115157]
[1646298428942,0.355097,43443.0,43439.0,0.117157]
[1646298429141,0.00016009,43444.0,43439.0,0.117157]
[1646298429342,0.355097,43443.0,43439.0,0.117157]
[1646298429544,0.08245,43447.0,43439.0,0.117157]
[1646298429741,0.355097,43446.0,43439.0,0.117157]
[1646298429942,0.00016009,43444.0,43439.0,0.117157]
[1646298430143,0.00016009,43444.0,43439.0,0.115157]
[1646298430343,0.21291383,43443.0,43439.0,0.115157]
[1646298430704,0.00016009,43444.0,43439.0,0.115157]
[1646298430904,0.355097,43446.0,43439.0,0.115157]
[1646298431104,0.00116009,43443.0,43439.0,0.115157]
[1646298431705,0.00116009,43443.0,43440.0,0.23108747]
[1646298432004,0.001,43443.0,43440.0,0.23108747]
[1646298432210,0.001,43443.0,43439.0,0.115157]
[1646298432607,0.355097,43442.0,43439.0,0.115157]
[1646298432806,0.355097,43443.0,43439.0,0.115157]
[1646298433006,0.355097,43443.0,43439.0,0.119157]
[1646298433208,0.355097,43446.0,43439.0,0.119157]
[1646298433406,0.00016009,43443.0,43439.0,0.119157]
[1646298433606,0.355097,43442.0,43439.0,0.119157]
[1646298434207,0.00016009,43443.0,43439.0,0.119157]
[1646298434436,0.355097,43442.0,43439.0,0.119157]
[1646298434634,0.355097,43441.0,43439.0,0.119157]
[1646298434840,0.355097,43441.0,43439.0,0.115157]
[1646298434841,0.28731423,43441.0,43439.0,0.115157]
[1646298435035,0.001,43442.0,43439.0,0.115157]
[1646298435237,0.355097,43441.0,43439.0,0.115157]
[1646298435436,0.001,43442.0,43439.0,0.115157]
[1646298435638,0.355097,43441.0,43439.0,0.115157]
[1646298436334,0.21420668,43440.0,43439.0,0.115157]
[1646298436935,0.21620668,43440.0,43439.0,0.115157]
[1646298437135,0.57130368,43440.0,43439.0,0.115157]
[1646298437541,0.355097,43439.0,43436.0,0.115192]
[1646298438410,0.21420668,43440.0,43430.0,0.057609]
[1646298438411,0.355097,43436.0,43430.0,0.057609]
[1646298438611,0.355097,43431.0,43423.0,0.59953]
[1646298438808,0.0461,43430.0,43423.0,0.59953]
[1646298439009,0.355097,43429.0,43423.0,0.59953]
[1646298439210,0.401197,43429.0,43423.0,0.59953]
[1646298440010,0.355097,43424.0,43423.0,0.59953]
[1646298441010,0.358097,43424.0,43423.0,0.59953]
[1646298442438,0.355097,43424.0,43423.0,0.59953]
[1646298442643,0.355097,43424.0,43423.0,0.59941065]
[1646298443040,0.358097,43424.0,43423.0,0.59941065]
[1646298444141,0.355097,43424.0,43423.0,0.59941065]
[1646298444944,0.358097,43424.0,43423.0,0.59941065]
[1646298446303,0.355097,43424.0,43423.0,0.59941065]
[1646298446499,0.401197,43424.0,43423.0,0.59941065]
[1646298446899,0.401197,43424.0,43423.0,0.484304]
[1646298447101,0.404197,43424.0,43423.0,0.484304]
[1646298447400,0.78510999,43424.0,43423.0,0.484304]
[1646298448001,0.84273899,43424.0,43423.0,0.484304]
[1646298448200,0.83973899,43424.0,43423.0,0.484304]
[1646298448701,0.80606047,43424.0,43423.0,0.484304]
[1646298449102,1.10906047,43424.0,43423.0,0.484304]
[1646298449302,1.13207047,43424.0,43423.0,0.484304]
[1646298449771,1.14357047,43424.0,43423.0,0.484304]
[1646298449965,1.29689775,43424.0,43423.0,0.484304]
[1646298450167,1.14357047,43424.0,43423.0,0.484304]
[1646298450372,1.31384175,43424.0,43423.0,0.484304]
[1646298450765,1.46716791,43424.0,43423.0,0.484304]
[1646298451167,1.47216791,43424.0,43423.0,0.484304]
[1646298451966,2.04816791,43424.0,43423.0,0.484304]
[1646298452166,2.04316791,43424.0,43423.0,0.484304]
[1646298452764,1.56989663,43424.0,43423.0,0.484304]
[1646298452968,1.57389663,43424.0,43423.0,0.484304]
[1646298453799,1.56239663,43424.0,43423.0,0.484304]
[1646298454195,1.55839663,43424.0,43423.0,0.484304]
[1646298454395,1.70830207,43424.0,43423.0,0.484304]
[1646298454996,1.71130207,43424.0,43423.0,0.484304]
[1646298455499,1.56139663,43424.0,43423.0,0.484304]
[1646298456700,1.40807047,43424.0,43423.0,0.484304]
[1646298457546,1.50807047,43424.0,43423.0,0.484304]
[1646298457948,1.50807047,43424.0,43423.0,0.474304]
[1646298458346,1.50507047,43424.0,43423.0,0.474304]
[1646298458747,1.48507047,43424.0,43423.0,0.474304]
[1646298458948,1.46206047,43424.0,43423.0,0.474304]
[1646298459147,1.48507047,43424.0,43423.0,0.474304]
[1646298460350,1.63838967,43424.0,43423.0,0.474304]
[1646298460798,1.06238967,43424.0,43423.0,0.474304]
[1646298461194,1.36238967,43424.0,43423.0,0.474304]
[1646298461496,1.33937967,43424.0,43423.0,0.474304]
[1646298463298,1.18606047,43424.0,43423.0,0.474304]
[1646298463594,0.49692771,43424.0,43423.0,0.474304]
[1646298464449,0.335097,43424.0,43423.0,0.474304]
[1646298465652,0.335097,43424.0,43423.0,0.73188222]
[1646298467850,0.335097,43424.0,43423.0,0.474304]
[1646298471199,0.385197,43424.0,43423.0,0.474304]
[1646298472241,0.69596523,43424.0,43423.0,0.44082208]
[1646298472440,0.69196523,43424.0,43423.0,0.40654244]
[1646298472740,1.77383474,43424.0,43423.0,0.40654244]
[1646298472944,1.42127708,43424.0,43423.0,0.40654244]
[1646298473240,1.50328708,43424.0,43423.0,0.40654244]
[1646298473439,1.51478708,43424.0,43423.0,0.40654244]
[1646298474241,1.45715508,43424.0,43423.0,0.40654244]
[1646298476394,1.44565508,43424.0,43423.0,0.40654244]
[1646298476592,1.36364508,43424.0,43423.0,0.40654244]
[1646298476793,1.36664508,43424.0,43423.0,0.40654244]
[1646298476993,1.36664508,43424.0,43423.0,0.41901371]
[1646298477195,1.36664508,43424.0,43423.0,0.40654244]
[1646298477993,1.36364508,43424.0,43423.0,0.40654244]
[1646298478999,1.36664508,43424.0,43423.0,0.40654244]
[1646298480354,1.36664508,43424.0,43423.0,0.40465774]